[Event "Titled Tuesday Blitz April 11 Early 2023"]
[White "Aravindh, Chithambaram VR."]
[Black "Han, Yichen"]
[WhiteFideId "5072786"]
[BlackFideId "1054430"]
[WhiteElo "2596"]
[BlackElo "2342"]
[Result "1-0"]
[Round "02"]
[TimeControl "180+2"]
[Date "2023.04.11"]
[WhiteClock "0:00:55"]
[BlackClock "0:00:04"]

1. c4 {[%clk 0:02:59]}  e6 {[%clk 0:02:58]} 2. b3 {[%clk 0:02:57]}  d5 {[%clk 0:02:58]} 3. Bb2 {[%clk 0:02:58]}  c5 {[%clk 0:02:58]} 4. e3 {[%clk 0:02:57]}  Nc6 {[%clk 0:02:58]} 5. Nf3 {[%clk 0:02:57]}  d4 {[%clk 0:02:56]} 6. exd4 {[%clk 0:02:55]}  cxd4 {[%clk 0:02:57]} 7. Bd3 {[%clk 0:02:55]}  Nf6 {[%clk 0:02:53]} 8. O-O {[%clk 0:02:55]}  Be7 {[%clk 0:02:52]} 9. Re1 {[%clk 0:02:52]}  O-O {[%clk 0:02:51]} 10. Na3 {[%clk 0:02:53]}  Nb4 {[%clk 0:02:42]} 11. Bf1 {[%clk 0:02:49]}  d3 {[%clk 0:02:35]} 12. Ne5 {[%clk 0:02:48]}  a5 {[%clk 0:02:22]} 13. Qf3 {[%clk 0:02:48]}  Nc2 {[%clk 0:02:21]} 14. Nxc2 {[%clk 0:02:47]}  dxc2 {[%clk 0:02:22]} 15. d4 {[%clk 0:02:35]}  a4 {[%clk 0:02:15]} 16. Rec1 {[%clk 0:02:22]}  axb3 {[%clk 0:01:45]} 17. axb3 {[%clk 0:02:23]}  Rxa1 {[%clk 0:01:44]} 18. Bxa1 {[%clk 0:02:20]}  Qa5 {[%clk 0:01:37]} 19. Qc3 {[%clk 0:02:16]}  Qxc3 {[%clk 0:01:30]} 20. Bxc3 {[%clk 0:02:16]}  Ne4 {[%clk 0:01:31]} 21. Bb2 {[%clk 0:02:16]}  Nd2 {[%clk 0:01:21]} 22. Rxc2 {[%clk 0:02:16]}  Nxb3 {[%clk 0:01:20]} 23. c5 {[%clk 0:01:56]}  Rd8 {[%clk 0:01:17]} 24. c6 {[%clk 0:01:56]}  Bd6 {[%clk 0:00:49]} 25. c7 {[%clk 0:01:06]}  Re8 {[%clk 0:00:43]} 26. Bb5 {[%clk 0:01:07]}  Re7 {[%clk 0:00:43]} 27. Nd7 {[%clk 0:01:07]}  e5 {[%clk 0:00:15]} 28. dxe5 {[%clk 0:01:00]}  Bxd7 {[%clk 0:00:04]} 29. c8=Q+ {[%clk 0:00:55]} 1-0


[Site "https://www.chess.com"]

[Event "Titled Tuesday Blitz April 11 Early 2023"]
[White "Cori T., Deysi"]
[Black "Gabrielian, Artur"]
[WhiteFideId "3801934"]
[BlackFideId "4131002"]
[WhiteElo "2292"]
[BlackElo "2432"]
[Result "0-1"]
[Round "02"]
[TimeControl "180+2"]
[Date "2023.04.11"]
[WhiteClock "0:00:03"]
[BlackClock "0:00:11"]

1. Nf3 {[%clk 0:03:00]}  Nf6 {[%clk 0:02:57]} 2. g3 {[%clk 0:03:00]}  g6 {[%clk 0:02:55]} 3. Bg2 {[%clk 0:03:01]}  Bg7 {[%clk 0:02:56]} 4. O-O {[%clk 0:03:01]}  O-O {[%clk 0:02:57]} 5. d4 {[%clk 0:03:02]}  d6 {[%clk 0:02:56]} 6. b3 {[%clk 0:03:02]}  b5 {[%clk 0:02:54]} 7. a4 {[%clk 0:02:54]}  b4 {[%clk 0:02:49]} 8. a5 {[%clk 0:02:54]}  Bb7 {[%clk 0:02:45]} 9. Bb2 {[%clk 0:02:36]}  c5 {[%clk 0:02:38]} 10. Ne1 {[%clk 0:02:18]}  Bxg2 {[%clk 0:02:37]} 11. Kxg2 {[%clk 0:02:19]}  cxd4 {[%clk 0:02:35]} 12. Bxd4 {[%clk 0:02:15]}  Nc6 {[%clk 0:02:34]} 13. Bb2 {[%clk 0:02:11]}  Nxa5 {[%clk 0:02:31]} 14. Qd3 {[%clk 0:02:05]}  Nc6 {[%clk 0:02:29]} 15. Qb5 {[%clk 0:01:59]}  Qc7 {[%clk 0:02:23]} 16. Ra6 {[%clk 0:01:50]}  Rfc8 {[%clk 0:02:21]} 17. Nd2 {[%clk 0:01:46]}  Rab8 {[%clk 0:02:20]} 18. Qa4 {[%clk 0:01:47]}  Nd7 {[%clk 0:02:16]} 19. Bxg7 {[%clk 0:01:44]}  Kxg7 {[%clk 0:02:11]} 20. Nd3 {[%clk 0:01:43]}  Qb7 {[%clk 0:02:00]} 21. f3 {[%clk 0:01:41]}  Nb6 {[%clk 0:01:47]} 22. Qa1+ {[%clk 0:01:41]}  Kg8 {[%clk 0:01:45]} 23. e4 {[%clk 0:01:33]}  e5 {[%clk 0:01:45]} 24. Rf2 {[%clk 0:01:32]}  Rc7 {[%clk 0:01:43]} 25. Nf1 {[%clk 0:01:30]}  Nd4 {[%clk 0:01:43]} 26. Ne3 {[%clk 0:01:28]}  Rbc8 {[%clk 0:01:44]} 27. Nxb4 {[%clk 0:01:28]}  f5 {[%clk 0:01:20]} 28. c3 {[%clk 0:00:55]}  Ne6 {[%clk 0:00:57]} 29. exf5 {[%clk 0:00:50]}  Nc5 {[%clk 0:00:56]} 30. Ra3 {[%clk 0:00:44]}  Rf7 {[%clk 0:00:54]} 31. fxg6 {[%clk 0:00:30]}  hxg6 {[%clk 0:00:55]} 32. c4 {[%clk 0:00:26]}  Rcf8 {[%clk 0:00:51]} 33. Nbd5 {[%clk 0:00:26]}  Nxd5 {[%clk 0:00:49]} 34. Nxd5 {[%clk 0:00:26]}  Nxb3 {[%clk 0:00:46]} 35. Qb1 {[%clk 0:00:24]}  Nd4 {[%clk 0:00:42]} 36. Qxg6+ {[%clk 0:00:23]}  Kh8 {[%clk 0:00:41]} 37. Qh6+ {[%clk 0:00:20]}  Kg8 {[%clk 0:00:41]} 38. Qg6+ {[%clk 0:00:18]}  Kh8 {[%clk 0:00:40]} 39. Qxd6 {[%clk 0:00:18]}  Nf5 {[%clk 0:00:18]} 40. Qg6 {[%clk 0:00:17]}  Rg7 {[%clk 0:00:16]} 41. Qh5+ {[%clk 0:00:16]}  Rh7 {[%clk 0:00:17]} 42. Qg5 {[%clk 0:00:16]}  Rg7 {[%clk 0:00:14]} 43. Qd2 {[%clk 0:00:16]}  Qf7 {[%clk 0:00:11]} 44. Ra6 {[%clk 0:00:14]}  Rfg8 {[%clk 0:00:11]} 45. Rh6+ {[%clk 0:00:08]}  Nxh6 {[%clk 0:00:11]} 46. Qxh6+ {[%clk 0:00:09]}  Rh7 {[%clk 0:00:11]} 47. Qf6+ {[%clk 0:00:09]}  Rhg7 {[%clk 0:00:12]} 48. Qxe5 {[%clk 0:00:08]}  Kh7 {[%clk 0:00:10]} 49. Qe4+ {[%clk 0:00:08]}  Kh8 {[%clk 0:00:09]} 50. Qh4+ {[%clk 0:00:08]}  Rh7 {[%clk 0:00:10]} 51. Qd4+ {[%clk 0:00:08]}  Qg7 {[%clk 0:00:10]} 52. Qf6 {[%clk 0:00:06]}  Rf8 {[%clk 0:00:09]} 53. Qxg7+ {[%clk 0:00:05]}  Rxg7 {[%clk 0:00:10]} 54. f4 {[%clk 0:00:05]}  Rc8 {[%clk 0:00:10]} 55. Rc2 {[%clk 0:00:06]}  a5 {[%clk 0:00:10]} 56. f5 {[%clk 0:00:06]}  a4 {[%clk 0:00:11]} 57. f6 {[%clk 0:00:06]}  Rb7 {[%clk 0:00:10]} 58. g4 {[%clk 0:00:06]}  a3 {[%clk 0:00:11]} 59. g5 {[%clk 0:00:03]}  Rb2 {[%clk 0:00:10]} 60. Rxb2 {[%clk 0:00:01]}  axb2 {[%clk 0:00:11]} 61. Nc3 {[%clk 0:00:02]}  Rxc4 {[%clk 0:00:11]} 62. Nb1 {[%clk 0:00:02]}  Rc1 {[%clk 0:00:11]} 63. g6 {[%clk 0:00:02]}  Rxb1 {[%clk 0:00:11]} 64. f7 {[%clk 0:00:02]}  Kg7 {[%clk 0:00:11]} 65. h4 {[%clk 0:00:03]}  Rg1+ {[%clk 0:00:10]} 66. Kxg1 {[%clk 0:00:03]}  b1=Q+ {[%clk 0:00:10]} 67. Kg2 {[%clk 0:00:03]}  Qxg6+ {[%clk 0:00:11]} 0-1


[Site "https://www.chess.com"]

[Event "Titled Tuesday Blitz April 11 Early 2023"]
[White "Paszewski, Mateusz"]
[Black "Asis Gargatagli, Hipolito"]
[WhiteFideId "1141058"]
[BlackFideId "2260735"]
[WhiteElo "2223"]
[BlackElo "2557"]
[Result "0-1"]
[Round "02"]
[TimeControl "180+2"]
[Date "2023.04.11"]
[WhiteClock "0:00:43"]
[BlackClock "0:02:40"]

1. c4 {[%clk 0:03:00]}  g6 {[%clk 0:02:59]} 2. g3 {[%clk 0:02:59]}  Bg7 {[%clk 0:02:59]} 3. Bg2 {[%clk 0:03:00]}  c5 {[%clk 0:03:00]} 4. Nc3 {[%clk 0:03:01]}  Nc6 {[%clk 0:03:00]} 5. Nf3 {[%clk 0:03:01]}  d6 {[%clk 0:03:01]} 6. O-O {[%clk 0:03:01]}  e6 {[%clk 0:03:01]} 7. e3 {[%clk 0:03:01]}  Nge7 {[%clk 0:03:01]} 8. d4 {[%clk 0:03:01]}  O-O {[%clk 0:03:02]} 9. Rb1 {[%clk 0:02:31]}  Nf5 {[%clk 0:02:54]} 10. dxc5 {[%clk 0:02:08]}  dxc5 {[%clk 0:02:54]} 11. Qe2 {[%clk 0:02:08]}  Qe7 {[%clk 0:02:49]} 12. Rd1 {[%clk 0:02:08]}  b6 {[%clk 0:02:49]} 13. Ne4 {[%clk 0:01:49]}  Bb7 {[%clk 0:02:44]} 14. g4 {[%clk 0:01:22]}  Nb4 {[%clk 0:02:44]} 15. Ne1 {[%clk 0:00:49]}  Nh4 {[%clk 0:02:44]} 16. Bh1 {[%clk 0:00:47]}  f5 {[%clk 0:02:44]} 17. gxf5 {[%clk 0:00:46]}  exf5 {[%clk 0:02:44]} 18. Nd6 {[%clk 0:00:43]}  Qg5+ {[%clk 0:02:40]} 0-1


[Site "https://www.chess.com"]

[Event "Titled Tuesday Blitz April 11 Early 2023"]
[White "Shevtchenko, Olesya"]
[Black "Costachi, Mihnea"]
[WhiteFideId "24131890"]
[BlackFideId "1217518"]
[WhiteElo "2003"]
[BlackElo "2456"]
[Result "1-0"]
[Round "02"]
[TimeControl "180+2"]
[Date "2023.04.11"]
[WhiteClock "0:00:18"]
[BlackClock "0:01:05"]

1. e4 {[%clk 0:03:00]}  c5 {[%clk 0:02:59]} 2. Nf3 {[%clk 0:03:01]}  d6 {[%clk 0:02:58]} 3. d4 {[%clk 0:03:01]}  cxd4 {[%clk 0:02:59]} 4. Nxd4 {[%clk 0:03:01]}  Nf6 {[%clk 0:03:00]} 5. Nc3 {[%clk 0:03:02]}  Nc6 {[%clk 0:03:00]} 6. Bg5 {[%clk 0:03:02]}  e6 {[%clk 0:03:01]} 7. Qd3 {[%clk 0:03:01]}  a6 {[%clk 0:03:00]} 8. Nxc6 {[%clk 0:02:53]}  bxc6 {[%clk 0:02:59]} 9. O-O-O {[%clk 0:02:54]}  Be7 {[%clk 0:02:56]} 10. Qg3 {[%clk 0:02:48]}  e5 {[%clk 0:02:45]} 11. f4 {[%clk 0:02:25]}  Nh5 {[%clk 0:02:34]} 12. Bxe7 {[%clk 0:01:51]}  Qxe7 {[%clk 0:02:30]} 13. Qd3 {[%clk 0:01:49]}  Bg4 {[%clk 0:02:21]} 14. Qxd6 {[%clk 0:01:36]}  Qxd6 {[%clk 0:02:21]} 15. Rxd6 {[%clk 0:01:37]}  Nxf4 {[%clk 0:02:22]} 16. g3 {[%clk 0:01:27]}  Ne6 {[%clk 0:02:16]} 17. Bc4 {[%clk 0:01:24]}  Nd4 {[%clk 0:02:13]} 18. Rf1 {[%clk 0:00:58]}  Ke7 {[%clk 0:02:12]} 19. Rxd4 {[%clk 0:00:50]}  exd4 {[%clk 0:02:13]} 20. Rxf7+ {[%clk 0:00:51]}  Kd6 {[%clk 0:02:14]} 21. Na4 {[%clk 0:00:49]}  Rae8 {[%clk 0:02:03]} 22. b4 {[%clk 0:00:38]}  Re7 {[%clk 0:01:55]} 23. Rf4 {[%clk 0:00:35]}  h5 {[%clk 0:01:50]} 24. Nc5 {[%clk 0:00:32]}  g5 {[%clk 0:01:50]} 25. Rf6+ {[%clk 0:00:29]}  Kc7 {[%clk 0:01:45]} 26. Nxa6+ {[%clk 0:00:29]}  Kb7 {[%clk 0:01:42]} 27. Nc5+ {[%clk 0:00:29]}  Kc7 {[%clk 0:01:43]} 28. a4 {[%clk 0:00:21]}  h4 {[%clk 0:01:41]} 29. b5 {[%clk 0:00:20]}  cxb5 {[%clk 0:01:40]} 30. axb5 {[%clk 0:00:20]}  hxg3 {[%clk 0:01:41]} 31. hxg3 {[%clk 0:00:20]}  Bc8 {[%clk 0:01:33]} 32. b6+ {[%clk 0:00:20]}  Kb8 {[%clk 0:01:31]} 33. Bd5 {[%clk 0:00:21]}  Reh7 {[%clk 0:01:19]} 34. b7 {[%clk 0:00:18]}  Bg4 {[%clk 0:01:11]} 35. Ra6 {[%clk 0:00:15]}  Kc7 {[%clk 0:01:05]} 36. Ra8 {[%clk 0:00:14]}  Rh1+ {[%clk 0:00:57]} 37. Kb2 {[%clk 0:00:14]}  Kd6 {[%clk 0:00:54]} 38. Na6 {[%clk 0:00:10]}  Bd1 {[%clk 0:00:50]} 39. Rxh8 {[%clk 0:00:08]}  Rxh8 {[%clk 0:00:50]} 40. b8=Q+ {[%clk 0:00:09]}  Rxb8+ {[%clk 0:00:51]} 41. Nxb8 {[%clk 0:00:10]}  Kc7 {[%clk 0:00:52]} 42. Nc6 {[%clk 0:00:10]}  d3 {[%clk 0:00:52]} 43. cxd3 {[%clk 0:00:10]}  Be2 {[%clk 0:00:53]} 44. Kc3 {[%clk 0:00:10]}  Bh5 {[%clk 0:00:54]} 45. Kd4 {[%clk 0:00:11]}  Kd6 {[%clk 0:00:55]} 46. Nb4 {[%clk 0:00:10]}  Kd7 {[%clk 0:00:55]} 47. Ke5 {[%clk 0:00:10]}  Ke7 {[%clk 0:00:56]} 48. Nc2 {[%clk 0:00:11]}  Be2 {[%clk 0:00:56]} 49. d4 {[%clk 0:00:10]}  Bd3 {[%clk 0:00:57]} 50. Ne3 {[%clk 0:00:11]}  Ba6 {[%clk 0:00:58]} 51. Nf5+ {[%clk 0:00:12]}  Kd7 {[%clk 0:00:59]} 52. Kf6 {[%clk 0:00:12]}  Ke8 {[%clk 0:00:59]} 53. Kxg5 {[%clk 0:00:13]}  Kd7 {[%clk 0:01:00]} 54. Kf6 {[%clk 0:00:14]}  Ke8 {[%clk 0:01:00]} 55. g4 {[%clk 0:00:14]}  Kd8 {[%clk 0:01:01]} 56. g5 {[%clk 0:00:15]}  Kd7 {[%clk 0:01:02]} 57. g6 {[%clk 0:00:16]}  Bc8 {[%clk 0:01:02]} 58. g7 {[%clk 0:00:16]}  Ba6 {[%clk 0:01:03]} 59. g8=Q {[%clk 0:00:17]}  Bd3 {[%clk 0:01:04]} 60. Qe6+ {[%clk 0:00:18]}  Kc7 {[%clk 0:01:04]} 61. Qc6+ {[%clk 0:00:18]}  Kd8 {[%clk 0:01:04]} 62. Be6 {[%clk 0:00:18]}  Bxe4 {[%clk 0:01:05]} 63. Qd7# {[%clk 0:00:18]} 1-0


[Site "https://www.chess.com"]

[Event "Titled Tuesday Blitz April 11 Early 2023"]
[White "Cornette, Matthieu"]
[Black "Martic, Ivan"]
[WhiteFideId "620084"]
[BlackFideId "929301"]
[WhiteElo "2478"]
[BlackElo "2360"]
[Result "1/2-1/2"]
[Round "02"]
[TimeControl "180+2"]
[Date "2023.04.11"]
[WhiteClock "0:00:12"]
[BlackClock "0:00:09"]

1. Nc3 {[%clk 0:03:00]}  g6 {[%clk 0:02:56]} 2. e4 {[%clk 0:03:00]}  Bg7 {[%clk 0:02:56]} 3. f4 {[%clk 0:02:59]}  d6 {[%clk 0:02:53]} 4. Nf3 {[%clk 0:02:58]}  Nc6 {[%clk 0:02:51]} 5. Bb5 {[%clk 0:02:57]}  a6 {[%clk 0:02:50]} 6. Bxc6+ {[%clk 0:02:57]}  bxc6 {[%clk 0:02:51]} 7. d3 {[%clk 0:02:57]}  Nh6 {[%clk 0:02:41]} 8. O-O {[%clk 0:02:57]}  f5 {[%clk 0:02:41]} 9. Qe2 {[%clk 0:02:50]}  Nf7 {[%clk 0:02:28]} 10. Kh1 {[%clk 0:02:49]}  Be6 {[%clk 0:02:26]} 11. e5 {[%clk 0:02:45]}  dxe5 {[%clk 0:02:21]} 12. fxe5 {[%clk 0:02:44]}  O-O {[%clk 0:02:15]} 13. Bf4 {[%clk 0:02:40]}  h6 {[%clk 0:02:14]} 14. h4 {[%clk 0:02:38]}  Rb8 {[%clk 0:02:12]} 15. b3 {[%clk 0:02:36]}  c5 {[%clk 0:02:00]} 16. Na4 {[%clk 0:02:32]}  Qd5 {[%clk 0:01:56]} 17. c4 {[%clk 0:02:28]}  Qc6 {[%clk 0:01:56]} 18. Qe3 {[%clk 0:02:27]}  g5 {[%clk 0:01:48]} 19. hxg5 {[%clk 0:02:23]}  hxg5 {[%clk 0:01:49]} 20. Nxg5 {[%clk 0:02:21]}  Nxg5 {[%clk 0:01:44]} 21. Bxg5 {[%clk 0:02:22]}  f4 {[%clk 0:01:41]} 22. Bxf4 {[%clk 0:02:15]}  Rf5 {[%clk 0:01:35]} 23. Nxc5 {[%clk 0:02:10]}  Rbf8 {[%clk 0:01:35]} 24. d4 {[%clk 0:01:48]}  Bc8 {[%clk 0:01:20]} 25. Rf3 {[%clk 0:01:34]}  Rxf4 {[%clk 0:01:06]} 26. Rxf4 {[%clk 0:01:20]}  Qh6+ {[%clk 0:01:06]} 27. Kg1 {[%clk 0:01:18]}  Rxf4 {[%clk 0:01:06]} 28. Re1 {[%clk 0:01:14]}  Qh4 {[%clk 0:00:52]} 29. g3 {[%clk 0:00:47]}  Rg4 {[%clk 0:00:51]} 30. Kg2 {[%clk 0:00:48]}  Bh6 {[%clk 0:00:49]} 31. Qf3 {[%clk 0:00:24]}  Bf4 {[%clk 0:00:48]} 32. Qxf4 {[%clk 0:00:23]}  Rxf4 {[%clk 0:00:33]} 33. gxh4 {[%clk 0:00:24]}  Rxd4 {[%clk 0:00:33]} 34. Re4 {[%clk 0:00:19]}  Bb7 {[%clk 0:00:28]} 35. Nxb7 {[%clk 0:00:15]}  Rxe4 {[%clk 0:00:28]} 36. Nc5 {[%clk 0:00:15]}  Rxe5 {[%clk 0:00:28]} 37. Nxa6 {[%clk 0:00:15]}  Ra5 {[%clk 0:00:17]} 38. Nxc7 {[%clk 0:00:15]}  Rxa2+ {[%clk 0:00:17]} 39. Kg3 {[%clk 0:00:15]}  Kf7 {[%clk 0:00:18]} 40. Kf4 {[%clk 0:00:15]}  Rb2 {[%clk 0:00:18]} 41. Nd5 {[%clk 0:00:14]}  Rxb3 {[%clk 0:00:17]} 42. Ne3 {[%clk 0:00:15]}  Rb1 {[%clk 0:00:16]} 43. h5 {[%clk 0:00:14]}  Rh1 {[%clk 0:00:15]} 44. Kg5 {[%clk 0:00:14]}  Rg1+ {[%clk 0:00:15]} 45. Ng4 {[%clk 0:00:14]}  Kg7 {[%clk 0:00:14]} 46. h6+ {[%clk 0:00:13]}  Kf7 {[%clk 0:00:14]} 47. Kf5 {[%clk 0:00:12]}  Rh1 {[%clk 0:00:13]} 48. Ne5+ {[%clk 0:00:12]}  Kg8 {[%clk 0:00:09]} 49. Kg6 {[%clk 0:00:11]}  Rg1+ {[%clk 0:00:08]} 50. Kf5 {[%clk 0:00:11]}  Kh7 {[%clk 0:00:09]} 51. Ke6 {[%clk 0:00:11]}  Kxh6 {[%clk 0:00:09]} 52. Kxe7 {[%clk 0:00:11]}  Rc1 {[%clk 0:00:09]} 53. Kd6 {[%clk 0:00:11]}  Rxc4 {[%clk 0:00:09]} 54. Nxc4 {[%clk 0:00:12]} 1/2-1/2


[Site "https://www.chess.com"]

[Event "Titled Tuesday Blitz April 11 Early 2023"]
[White "Ashraf, Artin"]
[Black "Cremisi, Daniel"]
[WhiteFideId "22514805"]
[BlackFideId "2089882"]
[WhiteElo "2188"]
[BlackElo "2172"]
[Result "1-0"]
[Round "02"]
[TimeControl "180+2"]
[Date "2023.04.11"]
[WhiteClock "0:00:08"]
[BlackClock "0:01:18"]

1. d4 {[%clk 0:03:00]}  d5 {[%clk 0:02:54]} 2. Nc3 {[%clk 0:02:59]}  Nf6 {[%clk 0:02:53]} 3. Bf4 {[%clk 0:02:58]}  e6 {[%clk 0:02:52]} 4. Nb5 {[%clk 0:02:53]}  Na6 {[%clk 0:02:50]} 5. e3 {[%clk 0:02:53]}  c6 {[%clk 0:02:49]} 6. Nc3 {[%clk 0:02:52]}  Nc7 {[%clk 0:02:49]} 7. Nf3 {[%clk 0:02:47]}  Bd6 {[%clk 0:02:49]} 8. Bd3 {[%clk 0:02:46]}  Bxf4 {[%clk 0:02:49]} 9. exf4 {[%clk 0:02:46]}  b6 {[%clk 0:02:48]} 10. O-O {[%clk 0:02:32]}  c5 {[%clk 0:02:47]} 11. Nb5 {[%clk 0:02:26]}  Nxb5 {[%clk 0:02:46]} 12. Bxb5+ {[%clk 0:02:26]}  Bd7 {[%clk 0:02:45]} 13. Bd3 {[%clk 0:02:25]}  O-O {[%clk 0:02:43]} 14. c3 {[%clk 0:02:23]}  cxd4 {[%clk 0:02:42]} 15. Nxd4 {[%clk 0:02:23]}  Qc7 {[%clk 0:02:40]} 16. Qf3 {[%clk 0:02:22]}  a6 {[%clk 0:02:37]} 17. Rfe1 {[%clk 0:02:21]}  b5 {[%clk 0:02:37]} 18. Re5 {[%clk 0:02:01]}  Rfb8 {[%clk 0:02:33]} 19. Rae1 {[%clk 0:01:10]}  b4 {[%clk 0:02:31]} 20. f5 {[%clk 0:01:04]}  exf5 {[%clk 0:02:29]} 21. Bxf5 {[%clk 0:00:50]}  bxc3 {[%clk 0:02:25]} 22. bxc3 {[%clk 0:00:45]}  Bxf5 {[%clk 0:02:23]} 23. Rxf5 {[%clk 0:00:24]}  Re8 {[%clk 0:02:22]} 24. Rd1 {[%clk 0:00:22]}  Ne4 {[%clk 0:02:20]} 25. g3 {[%clk 0:00:12]}  Qxc3 {[%clk 0:02:12]} 26. Rxf7 {[%clk 0:00:10]}  Rf8 {[%clk 0:02:07]} 27. Rxf8+ {[%clk 0:00:08]}  Rxf8 {[%clk 0:02:07]} 28. Qxc3 {[%clk 0:00:09]}  Nxc3 {[%clk 0:02:07]} 29. Rd2 {[%clk 0:00:09]}  Rb8 {[%clk 0:02:07]} 30. Rc2 {[%clk 0:00:08]}  Ne4 {[%clk 0:02:04]} 31. f3 {[%clk 0:00:08]}  Nd6 {[%clk 0:02:03]} 32. Rc6 {[%clk 0:00:08]}  Nb5 {[%clk 0:01:55]} 33. Nf5 {[%clk 0:00:08]}  d4 {[%clk 0:01:51]} 34. a4 {[%clk 0:00:06]}  Nc3 {[%clk 0:01:51]} 35. a5 {[%clk 0:00:05]}  Ne2+ {[%clk 0:01:43]} 36. Kf1 {[%clk 0:00:04]}  d3 {[%clk 0:01:42]} 37. Rd6 {[%clk 0:00:04]}  Rb3 {[%clk 0:01:41]} 38. Rxa6 {[%clk 0:00:04]}  Nd4 {[%clk 0:01:34]} 39. Ra8+ {[%clk 0:00:02]}  Kf7 {[%clk 0:01:34]} 40. Nd6+ {[%clk 0:00:03]}  Ke6 {[%clk 0:01:33]} 41. Ne4 {[%clk 0:00:04]}  Rb2 {[%clk 0:01:29]} 42. Nc5+ {[%clk 0:00:04]}  Kd5 {[%clk 0:01:28]} 43. Nxd3 {[%clk 0:00:05]}  Rd2 {[%clk 0:01:28]} 44. Rd8+ {[%clk 0:00:06]}  Kc4 {[%clk 0:01:28]} 45. Ne5+ {[%clk 0:00:06]}  Kc3 {[%clk 0:01:28]} 46. Rc8+ {[%clk 0:00:07]}  Kb3 {[%clk 0:01:28]} 47. a6 {[%clk 0:00:07]}  Ra2 {[%clk 0:01:26]} 48. Rb8+ {[%clk 0:00:07]}  Kc3 {[%clk 0:01:25]} 49. Rc8+ {[%clk 0:00:08]}  Kb3 {[%clk 0:01:26]} 50. Nd3 {[%clk 0:00:07]}  Nxf3 {[%clk 0:01:17]} 51. Nc1+ {[%clk 0:00:07]}  Kb2 {[%clk 0:01:17]} 52. Nxa2 {[%clk 0:00:08]}  Kxa2 {[%clk 0:01:18]} 53. a7 {[%clk 0:00:08]} 1-0


[Site "https://www.chess.com"]

[Event "Titled Tuesday Blitz April 11 Early 2023"]
[White "Sharapov, Evgeny"]
[Black "Gorodetzky, David"]
[WhiteFideId "14103133"]
[BlackFideId "2813416"]
[WhiteElo "2367"]
[BlackElo "2484"]
[Result "0-1"]
[Round "02"]
[TimeControl "180+2"]
[Date "2023.04.11"]
[WhiteClock "0:00:50"]
[BlackClock "0:01:43"]

1. e4 {[%clk 0:02:59]}  c5 {[%clk 0:02:59]} 2. Nf3 {[%clk 0:02:59]}  d6 {[%clk 0:02:59]} 3. d4 {[%clk 0:02:59]}  cxd4 {[%clk 0:03:00]} 4. Nxd4 {[%clk 0:03:00]}  Nf6 {[%clk 0:03:01]} 5. f3 {[%clk 0:03:00]}  Nc6 {[%clk 0:02:58]} 6. c4 {[%clk 0:02:59]}  e6 {[%clk 0:02:51]} 7. Nc3 {[%clk 0:02:59]}  Be7 {[%clk 0:02:50]} 8. Be3 {[%clk 0:02:59]}  O-O {[%clk 0:02:50]} 9. Be2 {[%clk 0:02:59]}  d5 {[%clk 0:02:50]} 10. cxd5 {[%clk 0:02:58]}  exd5 {[%clk 0:02:50]} 11. Nxc6 {[%clk 0:02:58]}  bxc6 {[%clk 0:02:50]} 12. exd5 {[%clk 0:02:59]}  cxd5 {[%clk 0:02:50]} 13. O-O {[%clk 0:02:58]}  Re8 {[%clk 0:02:50]} 14. Bd4 {[%clk 0:02:56]}  Bd6 {[%clk 0:02:46]} 15. Kh1 {[%clk 0:02:47]}  Nh5 {[%clk 0:02:42]} 16. Bf2 {[%clk 0:02:32]}  Nf4 {[%clk 0:02:16]} 17. Bb5 {[%clk 0:02:26]}  Re5 {[%clk 0:02:13]} 18. Bg3 {[%clk 0:02:17]}  Rh5 {[%clk 0:02:10]} 19. Re1 {[%clk 0:01:55]}  Be6 {[%clk 0:01:59]} 20. Qd2 {[%clk 0:01:29]}  Qg5 {[%clk 0:01:55]} 21. Ne2 {[%clk 0:01:02]}  Nxe2 {[%clk 0:01:44]} 22. Qxg5 {[%clk 0:00:52]}  Nxg3+ {[%clk 0:01:43]} 23. Qxg3 {[%clk 0:00:50]}  Bxg3 {[%clk 0:01:43]} 0-1


[Site "https://www.chess.com"]

[Event "Titled Tuesday Blitz April 11 Early 2023"]
[White "Galchenko, Matvey"]
[Black "Borrmann, Laurenz"]
[WhiteFideId "24175480"]
[BlackFideId "312187930"]
[WhiteElo "2423"]
[BlackElo "2312"]
[Result "1-0"]
[Round "02"]
[TimeControl "180+2"]
[Date "2023.04.11"]
[WhiteClock "0:00:49"]
[BlackClock "0:00:02"]

1. f4 {[%clk 0:02:59]}  d5 {[%clk 0:02:55]} 2. Nf3 {[%clk 0:02:59]}  Nf6 {[%clk 0:02:55]} 3. g3 {[%clk 0:02:59]}  g6 {[%clk 0:02:55]} 4. Bg2 {[%clk 0:03:00]}  Bg7 {[%clk 0:02:56]} 5. O-O {[%clk 0:03:01]}  O-O {[%clk 0:02:56]} 6. d3 {[%clk 0:03:01]}  c5 {[%clk 0:02:55]} 7. Nc3 {[%clk 0:03:02]}  d4 {[%clk 0:02:51]} 8. Na4 {[%clk 0:03:02]}  Qa5 {[%clk 0:02:16]} 9. c4 {[%clk 0:03:01]}  Bd7 {[%clk 0:02:06]} 10. b3 {[%clk 0:02:57]}  Bxa4 {[%clk 0:02:00]} 11. bxa4 {[%clk 0:02:58]}  Nc6 {[%clk 0:02:00]} 12. Rb1 {[%clk 0:02:56]}  Qc7 {[%clk 0:01:58]} 13. Bd2 {[%clk 0:02:44]}  Nd7 {[%clk 0:01:44]} 14. Qb3 {[%clk 0:02:41]}  Rab8 {[%clk 0:01:42]} 15. Ng5 {[%clk 0:02:32]}  e6 {[%clk 0:01:24]} 16. Qa3 {[%clk 0:02:29]}  Rfe8 {[%clk 0:01:14]} 17. a5 {[%clk 0:02:27]}  h6 {[%clk 0:01:03]} 18. Ne4 {[%clk 0:02:18]}  Bf8 {[%clk 0:01:03]} 19. a6 {[%clk 0:02:13]}  b6 {[%clk 0:01:02]} 20. Qa4 {[%clk 0:02:13]}  Rec8 {[%clk 0:00:54]} 21. g4 {[%clk 0:02:03]}  f5 {[%clk 0:00:19]} 22. gxf5 {[%clk 0:02:02]}  exf5 {[%clk 0:00:20]} 23. Ng3 {[%clk 0:02:01]}  Bd6 {[%clk 0:00:18]} 24. Kh1 {[%clk 0:01:50]}  Kh7 {[%clk 0:00:17]} 25. e4 {[%clk 0:01:45]}  dxe3 {[%clk 0:00:15]} 26. Bxe3 {[%clk 0:01:45]}  Nd4 {[%clk 0:00:13]} 27. Rbe1 {[%clk 0:01:40]}  Nf6 {[%clk 0:00:11]} 28. Bxd4 {[%clk 0:01:21]}  cxd4 {[%clk 0:00:12]} 29. Re6 {[%clk 0:01:22]}  Ng4 {[%clk 0:00:12]} 30. Ne2 {[%clk 0:01:21]}  Ne3 {[%clk 0:00:05]} 31. Rg1 {[%clk 0:01:21]}  Bc5 {[%clk 0:00:03]} 32. Bf3 {[%clk 0:01:17]}  Rg8 {[%clk 0:00:03]} 33. Qc6 {[%clk 0:01:00]}  Qxc6 {[%clk 0:00:02]} 34. Bxc6 {[%clk 0:01:01]}  Rbc8 {[%clk 0:00:02]} 35. h4 {[%clk 0:00:49]} 1-0


[Site "https://www.chess.com"]